Cogmind - Beta 9.6 *** ADVENTURER MODE // 2020.05.31 @ 23:05:50 Player: Wololo Result: Destroyed by G-34 Mercenary with Small Laser Performance ------------- Evolutions (1) 500 Regions Visited (2) 400 Robots Destroyed (45) 225 Value Destroyed (1264) 1264 Prototype IDs (6) 120 Alien Tech Used (0) 0 Bonus (0) 0 TOTAL SCORE: 2509 Bonus ------- None Cogmind --------- Core Integrity 0/400 Matter 262/300 Energy 159/250 System Corruption 0% Temperature Cool (6) Movement Core (200) Ox3 Location -9/Materials Parts ------- > --- POWER (1) -------- Ion Engine > --- PROPULSION (2) --- (None) > --- UTILITY (4) ------ Visual Processing Unit Armor Integrity Analyzer ECM Suite > --- WEAPON (2) ------- Assault Rifle Flail > --- INVENTORY (4) ---- Utility Shielding Peak State ------------ > --- POWER ------------ Heavy Ion Engine > --- PROPULSION ------- Armored Treads Armored Treads > --- UTILITY ---------- Structural Scanner Visual Processing Unit Improved Sensor Array ECM Suite > --- WEAPON ----------- Spread Laser Light EM Pulse Cannon > --- INVENTORY -------- Advanced Signal Interpreter Armor Integrity Analyzer Spread Laser [Rating: 19] Favorites ----------- Power Heavy Ion Engine Engine Heavy Ion Engine Propulsion Armored Treads Treads Armored Treads Leg Aluminum Leg Hover Unit Improved Hover Unit Flight Unit Flight Unit Utility ECM Suite Device ECM Suite Storage Medium Storage Unit Processor Visual Processing Unit Weapon Light EM Pulse Cannon Energy Gun Spread Laser Energy Cannon Light EM Pulse Cannon Ballistic Gun Light Assault Rifle Launcher Rocket Launcher Impact Weapon Hammer Build | -11 -10 -9 ------- Run | Scr Mat Mat Slots Evolved 2 | . . 2 Power . | . . . Propulsion . | . . . Utility 2 | . . 2 Weapon . | . . . Parts Attached 58 | 6 19 33 Power 6 | 2 . 4 Engine 6 | 2 . 4 Core . | . . . Reactor . | . . . Propulsion 12 | 2 5 5 Treads 5 | . 2 3 Leg 2 | 2 . . Wheel . | . . . Hover 3 | . 3 . Flight 2 | . . 2 Utility 17 | . 10 7 Device 10 | . 5 5 Storage 4 | . 4 . Processor 3 | . 1 2 Hackware . | . . . Protection . | . . . Artifact . | . . . Weapon 23 | 2 4 17 Energy Gun 7 | 1 2 4 Energy Cannon 3 | . . 3 Ballistic Gun 7 | 1 2 4 Ballistic Cannon . | . . . Launcher 1 | . . 1 Special Weapon . | . . . Impact Weapon 5 | . . 5 Slashing Weapon . | . . . Piercing Weapon . | . . . Special Melee Weapon . | . . . Unidentified Prototypes 1 | . . 1 Parts Lost 20 | . 6 14 Power 3 | . 1 2 Propulsion 6 | . 2 4 Utility 3 | . 1 2 Weapon 8 | . 2 6 Highest Loss Streak 6 | . 2 6 Average Slot Usage (%) 90 | . 79 95 Engine 11 | . 12 10 Treads 14 | . 4 19 Hover 3 | . 12 . Device 23 | . 13 27 Storage 2 | . 10 . Processor 10 | . . 15 Energy Gun 9 | . 23 3 Energy Cannon 5 | . . 7 Ballistic Gun 4 | . 1 5 Impact Weapon 2 | . . 4 Naked Turns 3 | . 3 . Heaviest Build 43 | 9 43 25 Greatest Support 40 | 20 20 40 Greatest Overweight (x) 5 | . 5 3 Average Overweight (x) . | . 1 . Largest Inventory Capacity 12 | 4 12 4 Average Capacity 4 | 4 6 4 Most Carried 4 | 2 4 4 Average Carried 2 | . 2 2 Final Capacity 4 | 4 4 4 Final Carried 2 | . 2 1 Class Distribution -------------------- 49% | Infiltrator-Mutant 36% | Mutant 9% | Skirmisher 3% | Scavenger-Mutant Dominant Class ---------------- Mutant | -10/Materials Infiltrator-Mutant | -9/Materials Resources | -11 -10 -9 ----------- Run | Scr Mat Mat Matter Collected 740 | 263 90 387 Remotely . | . . . Salvage Created 1561 | 40 272 1249 Parts 101 | 2 24 75 Haulers Intercepted 1 | . . 1 Recyclers Shooed . | . . . Parts Field Recycled 1 | . . 1 Retrieved Matter 4 | . . 4 Parts Self-Destructed . | . . . Prevented . | . . . Kills | -11 -10 -9 ------- Run | Scr Mat Mat Combat Hostiles Destroyed 38 | 1 9 28 Melee 2 | . . 2 Guns 20 | 1 9 10 Cannons 12 | . . 12 AOE 2 | . . 2 Classes Destroyed 8 | 1 3 4 Builder 1 | . 1 . Tunneler 1 | . . 1 Hauler 1 | . . 1 Watcher 4 | . 1 3 Swarmer 11 | . 5 6 Grunt 17 | 1 4 12 Brawler 2 | . . 2 Sentry 8 | . . 8 Best Kill Streak 5 | 1 4 5 Combat Bots Only 3 | 1 3 3 Max Kills in Single Turn 2 | 1 1 2 Gunslinging . | . . . Exploded 2 | . . 2 Melee 1 | . . 1 Uniques/NPCs Destroyed . | . . . Combat | -11 -10 -9 -------- Run | Scr Mat Mat Damage Taken 2208 | 8 348 1852 Core 464 | . 57 407 Absorbed by Shields 21 | . . 21 Core Remaining (%) 88 | 100 77 . Volleys Fired 139 | 2 30 107 Largest 2 | 2 2 2 Hottest 121 | 60 115 121 Shots Fired 192 | 3 49 140 Gun 145 | 3 49 93 Cannon 47 | . . 47 Launcher . | . . . Special . | . . . Kinetic 63 | 1 . 62 Thermal 69 | . 30 39 Explosive . | . . . Electromagnetic 60 | 2 19 39 Robot Hit Streak 25 | 3 10 25 Robot Miss Streak 5 | . 5 3 Penetration Max . | . . . Secondary Targets 3 | . 3 . Max Gunslinging Chain 1 | . 1 . Shots Hit Robots 169 | 3 32 134 Core Hits 90 | 2 28 60 Critical Hits 2 | . . 2 Critical Kills . | . . . Critical Parts Destroyed 2 | . . 2 Melee Attacks 18 | . . 18 Impact 18 | . . 18 Slashing . | . . . Piercing . | . . . Sneak Attacks 2 | . . 2 Combat Hostiles . | . . . Follow-up Attacks . | . . . Damage Inflicted 2545 | 35 382 2128 Guns 1143 | 35 343 765 Cannons 779 | . . 779 Explosions 165 | . 39 126 Melee 458 | . . 458 Ramming . | . . . Kinetic 448 | 10 . 438 Thermal 729 | . 253 476 Explosive 100 | . . 100 Electromagnetic 810 | 25 129 656 Impact 458 | . . 458 Slashing . | . . . Piercing . | . . . Highest Corruption . | . . . Average Corruption . | . . . Corruption Purged . | . . . Overload Shots . | . . . Overflow Damage 97 | . . 97 Projectiles 5 | . . 5 Explosions . | . . . Melee 92 | . . 92 Knockbacks 1 | . . 1 Impact 1 | . . 1 Kinetic . | . . . Secondary . | . . . Self-Inflicted Damage 79 | . 18 61 Shots 2 | . 1 1 Rammed . | . . . Targets Rammed . | . . . Kicked . | . . . Crushed . | . . . Highest Temperature 338 | 6 338 244 Average Temperature 83 | 6 105 74 Received Heat Transfer 902 | 6 60 836 Effects 6 | . 4 2 Interference 6 | . 4 2 Siege Activations . | . . . Robots Corrupted . | . . . Combat Hostiles . | . . . Parts Fried 7 | . . 7 Impact Corruptions 4 | . . 4 Robots Melted 1 | . . 1 Combat Hostiles 1 | . . 1 Parts Melted 7 | . 1 6 Heat Transferred 1242 | . 375 867 Parts Sabotaged . | . . . Parts Stolen . | . . . Parts Stripped . | . . . Power Chain Reactions 2 | . 1 1 Missiles Intercepted . | . . . Alert | -11 -10 -9 ------- Run | Scr Mat Mat Peak Influence 291 | 20 181 291 Average Influence 90 | 3 74 102 Maximum Alert Level 1 | . . 1 Low Security (%) 90 | 100 100 85 Level 1 9 | . . 14 Level 2 . | . . . Level 3 . | . . . Level 4 . | . . . Level 5 . | . . . High Security . | . . . Max Security . | . . . Squads Dispatched 4 | . 1 3 Investigation 3 | . 1 2 Extermination . | . . . Reinforcement 1 | . . 1 Assault . | . . . Garrison . | . . . Intercept . | . . . Construction Impeded . | . . . Haulers Reinforced . | . . . Stealth | -11 -10 -9 --------- Run | Scr Mat Mat Distress Signals 1 | . . 1 Communications Jammed . | . . . Distress Signals . | . . . Times Spotted 61 | 1 13 47 Peak Tracking Total 6 | 1 4 6 Tactical Retreats 7 | . 1 6 Traps | -11 -10 -9 ------- Run | Scr Mat Mat Traps Triggered 3 | . 2 1 Indirectly . | . . . Trap Hack Attempts . | . . . Triggered . | . . . Disarmed 6 | . 6 . Reprogrammed . | . . . Reused . | . . . Traps Extracted . | . . . Installed . | . . . Triggered 1 | . . 1 Machines | -11 -10 -9 ---------- Run | Scr Mat Mat Machines Disabled 4 | . 2 2 Max in Single Turn 1 | . 1 1 Machines Sabotaged . | . . . Garrisons Compromised . | . . . Overloaded Fab Kills . | . . . Fab Network Shutdowns . | . . . Hacking | -11 -10 -9 --------- Run | Scr Mat Mat Machines Accessed 13 | . 3 10 Terminals 10 | . 3 7 Fabricators . | . . . Repair Stations . | . . . Recycling Units 2 | . . 2 Scanalyzers 1 | . . 1 Garrison Access . | . . . Total Hacks 59 | . 17 42 Successful 47 | . 12 35 Failed 12 | . 5 7 Catastrophic . | . . . Database Lockouts . | . . . Manual . | . . . Terminals 40 | . 17 23 Fabricators . | . . . Repair Stations . | . . . Recycling Units 8 | . . 8 Scanalyzers 11 | . . 11 Garrison Access . | . . . Terminal Hacks 28 | . 12 16 Record 8 | . 4 4 Prototype ID Bank 4 | . 1 3 Alert Level 3 | . . 3 Locate Traps 1 | . 1 . Disarm Traps 1 | . 1 . Dispatch Records 2 | . 1 1 Maintenance Status 1 | . . 1 Investigation Status 2 | . 2 . Reinforcement Status 1 | . . 1 Hauler Manifests 2 | . 1 1 Zone Layout 3 | . 1 2 Fabricator Hacks . | . . . Repair Station Hacks . | . . . Recycling Unit Hacks 8 | . . 8 Recycle Component 1 | . . 1 Process 1 | . . 1 Report Inventory 3 | . . 3 Retrieve Matter 1 | . . 1 Retrieve Components 2 | . . 2 Scanalyzer 11 | . . 11 Insert Component 6 | . . 6 Analyze 5 | . . 5 Garrison Access Hacks . | . . . Unauthorized Hacks . | . . . Terminals . | . . . Fabricators . | . . . Repair Stations . | . . . Recycling Units . | . . . Scanalyzers . | . . . Garrison Access . | . . . Data Cores Recovered . | . . . Used . | . . . Hacking Detections 10 | . 3 7 Full Trace Events 5 | . 1 4 Feedback Events . | . . . Feedback Blocked . | . . . Robot Schematics Acquired . | . . . Robots Built . | . . . Matter . | . . . Time . | . . . Total Robot Build Rating . | . . . Part Schematics Acquired 4 | . . 4 Parts Built . | . . . Matter . | . . . Time . | . . . Total Part Build Rating . | . . . Parts Repaired . | . . . Time . | . . . Parts Recycled 1 | . . 1 Recycled Matter 111 | . . 111 Retrieved Matter 111 | . . 111 Retrieved Components 3 | . . 3 Parts Scanalyzed 4 | . . 4 Part Schematics Acquired 4 | . . 4 Parts Damaged . | . . . Bothacking | -11 -10 -9 ------------ Run | Scr Mat Mat Used RIF Installer . | . . . Robots Hacked . | . . . Non-combat . | . . . Combat . | . . . Robot Hacks Applied . | . . . Relay Couplers Released . | . . . Robots Rewired . | . . . Allies Hacked . | . . . Hacks Repelled . | . . . Allies | -11 -10 -9 -------- Run | Scr Mat Mat Total Allies . | . . . Largest Group . | . . . Highest-Rated Group . | . . . Highest-Rated Ally . | . . . Total Orders . | . . . Ally Attacks . | . . . Total Damage . | . . . Kills . | . . . Allies Corrupted . | . . . Allies Melted . | . . . Intel | -11 -10 -9 ------- Run | Scr Mat Mat Robot Analysis Total . | . . . Derelict Logs Recovered . | . . . Drone Launches . | . . . Drone Recoveries . | . . . Exploration | -11 -10 -9 ------------- Run | Scr Mat Mat Turns Passed 2179 | 83 586 1510 Spaces Moved 1083 | 68 317 698 Core 104 | 22 43 39 Treads 726 | . 91 635 Legs 51 | 46 5 . Wheels . | . . . Hover 178 | . 178 . Flight 24 | . . 24 Fastest Speed 50 | 50 50 50 Average Speed 153 | 97 145 162 Slowest Speed 360 | 120 360 200 Overloaded Moves . | . . . Propulsion Burnouts . | . . . Robots Hopped . | . . . Cave-ins Triggered . | . . . Exploration Rate (%) 46 | 9 63 66 Regions Visited 2 Branch Regions . Pre-discovered Areas . | . . . Known Exits Taken . | . . . Unknown Exits Taken 2 | 1 1 . Scrap Searched . | . . . Spaces Dug . | . . . Terrain Destroyed 69 | . 35 34 Melee . | . . . Projectile . | . . . AOE 69 | . 35 34 Actions | -11 -10 -9 --------- Run | Scr Mat Mat Total 1401 | 83 398 920 Wait 19 | . 1 18 Move 1081 | 67 316 698 Hop . | . . . Pick Up 58 | 6 21 31 Fast Attach . | . . . Attach 53 | 6 19 28 Detach 4 | 1 2 1 Swap 5 | . . 5 Drop 24 | 1 9 14 Fire 139 | 2 30 107 Melee 18 | . . 18 Ram . | . . . Kick . | . . . Crush . | . . . Escape Stasis . | . . . Rewire . | . . . Trap . | . . . Miscellaneous . | . . . Route ------- -11/Scrapyard -10/Materials (discovered 2 exits: *Mat / [*Min]) -9/Materials (discovered 4 exits: [*Mat x2] / [*Min x2]) History --------- Turn | Location | Event 2 | -11/Scrapyard | Met Revision 17 57 | -11/Scrapyard | Discovered new exit (range 8) 84 | -11/Scrapyard | Entered Materials 226 | -10/Materials | Discovered new exit (range 11) 307 | -10/Materials | Build established: Mutant 638 | -10/Materials | Discovered new exit (range 16) 670 | -10/Materials | Entered another Materials area 670 | -9/Materials | Evolved 2 slots: Utility x2 1059 | -9/Materials | Discovered new exit (range 10) 1259 | -9/Materials | Build established: Infiltrator-Mutant 1771 | -9/Materials | Discovered new exit (range 17) 1934 | -9/Materials | Discovered new exit (range 15) 1974 | -9/Materials | Discovered new exit (range 18) 2068 | -9/Materials | Lost 6 parts (1p2n1u2w) 2120 | -9/Materials | Core integrity fell below 50% 2140 | -9/Materials | Core integrity fell below 20% 2162 | -9/Materials | Lost 5 parts (1p2n1u1w) 2180 | -9/Materials | Destroyed by G-34 Mercenary with Small Laser Last Messages --------------- Imp. Heat Sink fried. Acquired 56 matter. ALERT: Hostiles spotted, dispatching reinforcements to Terminal M006. Sneak attack on T-07 Excavator. Destroyed Imp. Terrain Scanner. Destroyed Lgt. Ion Engine. Destroyed Wheel. T-07 Excavator system corrupted by crushing effect. T-07 Excavator knocked back. T-07 Excavator system terminally corrupted. Acquired 28 matter. Sneak attack on A-02 Transporter. A-02 Transporter destroyed. Acquired Utility Shielding. Acquired Assault Rifle. Acquired 24 matter. Acquired Ion Engine. G-47 Trooper destroyed. G-34 Mercenary destroyed. R-06 Scavenger collects Ion Engine. Map ----- +----------------------------------------------------+ | ?????????#?????????????????????########??????????# | | ?????????# ????????????????????# T #??????????# | | ??????????? ??????????????????/ #??????????# | | ???????????? ?????????????????# " #??????????# | | ???????????###+#???????????????# """ #?????????## | | ???????#+### % ############### """ # ????????# | | ????# %% # """ # < ?????# | | ????# < / "" # ?????# | | ????# % % #= """ # ?????# | | ??????# #### = #### #[!="" # ?????# | | ???????????## #???# #*% "" ## ?????#= | | ????????????# #???# # ! " ## ###### | | ????????????# #???# ##### # ## / | | ????????????+ #???# #???# # ## ## | | ????????????# #???# #???# ###### ## """ # | | ????????????# #???# #???# ####?????### """ # | | ????????????# #####+##??# #??????????# """ # | | ????????????# # #??# #??????????# + | | ????????????#* !# #??# #?########## # | | ????????????#=[ # #??# #?# # """ # | | ??????????###%[!/ #??# #?# # """ # | | ????####### #%!=# #??# #?# # """ # | | ???## # #! # #??#=#?# # +% | | # #########! ########?##%### / # | | [ * ##########!!g## # #! | | = g !@%!= rr ###+## # | | " ##########=%=## ## # # | | =%* ##????####+### ## # | | = ##?????# ########### # ## | | #?????# #?????????# + ## | | #?????#[ ########### ###### | | ##?????# !!! + + #?# | | #??????# !!! ########### #?# | | #??????# !! #?????????#####?# | | ##########+####??????########???????????????# | | ????????????????????????????????????????????# | |